[Event "Early-Titled-Tuesday-Blitz-March-19-2024"]
[Site "Chess.com"]
[Date "2024.03.19"]
[Round "5"]
[White "Bauman_Guy"]
[Black "PepeCuenca"]
[Result "1/2-1/2"]
[WhiteElo "2921"]
[BlackElo "2732"]
[TimeControl "180+1"]
[EndTime "8:58:21 PDT"]
[Termination "Game drawn - insufficient material"]

1. e4 {[%clk 0:03:00.9]} 1... c5 {[%clk 0:02:47.6]} 2. Nf3 {[%clk 0:02:59.8]}
2... Nc6 {[%clk 0:02:47.5]} 3. d4 {[%clk 0:03:00.2]} 3... cxd4 {[%clk
0:02:47.9]} 4. Nxd4 {[%clk 0:03:01.1]} 4... e5 {[%clk 0:02:48.6]} 5. Nb5 {[%clk
0:03:01.1]} 5... d6 {[%clk 0:02:49.1]} 6. a4 {[%clk 0:03:00.8]} 6... Be7 {[%clk
0:02:40.8]} 7. N1c3 {[%clk 0:03:00.4]} 7... a6 {[%clk 0:02:37.9]} 8. Na3 {[%clk
0:03:00.1]} 8... Nf6 {[%clk 0:02:36.7]} 9. Bg5 {[%clk 0:02:59.5]} 9... O-O
{[%clk 0:02:31.9]} 10. Bxf6 {[%clk 0:02:57.5]} 10... Bxf6 {[%clk 0:02:32.1]} 11.
Bc4 {[%clk 0:02:57.3]} 11... Bg5 {[%clk 0:02:25.5]} 12. O-O {[%clk 0:02:55.9]}
12... Kh8 {[%clk 0:02:15.8]} 13. Nd5 {[%clk 0:02:55.4]} 13... f5 {[%clk
0:02:00.3]} 14. exf5 {[%clk 0:02:55.1]} 14... Bxf5 {[%clk 0:02:00.2]} 15. c3
{[%clk 0:02:55.4]} 15... Rc8 {[%clk 0:01:58.1]} 16. Nc2 {[%clk 0:02:51.7]} 16...
Ne7 {[%clk 0:01:43.6]} 17. Nxe7 {[%clk 0:02:43.9]} 17... Qxe7 {[%clk 0:01:44.5]}
18. Bd5 {[%clk 0:02:44.1]} 18... Rc5 {[%clk 0:01:41.5]} 19. Ne3 {[%clk
0:02:34.6]} 19... Bg6 {[%clk 0:01:29.8]} 20. Qd2 {[%clk 0:02:25.6]} 20... Qd7
{[%clk 0:01:16.9]} 21. b4 {[%clk 0:02:18.5]} 21... Rcc8 {[%clk 0:01:07.3]} 22.
a5 {[%clk 0:02:18.4]} 22... Rf6 {[%clk 0:00:57.2]} 23. Rad1 {[%clk 0:02:12.5]}
23... Rcf8 {[%clk 0:00:56.5]} 24. Qe2 {[%clk 0:02:09.5]} 24... Qc7 {[%clk
0:00:53.1]} 25. c4 {[%clk 0:01:25.2]} 25... h6 {[%clk 0:00:52.6]} 26. g3 {[%clk
0:01:14.9]} 26... Bxe3 {[%clk 0:00:47.4]} 27. Qxe3 {[%clk 0:01:14.3]} 27... Bf7
{[%clk 0:00:47.9]} 28. c5 {[%clk 0:01:04.6]} 28... dxc5 {[%clk 0:00:44.6]} 29.
Qxc5 {[%clk 0:01:04.3]} 29... Qxc5 {[%clk 0:00:35.8]} 30. bxc5 {[%clk
0:01:05.2]} 30... Bxd5 {[%clk 0:00:26.4]} 31. Rxd5 {[%clk 0:01:06.1]} 31... e4
{[%clk 0:00:23.6]} 32. Re5 {[%clk 0:01:04.3]} 32... Rf5 {[%clk 0:00:18]} 33.
Rxf5 {[%clk 0:00:49.6]} 33... Rxf5 {[%clk 0:00:17.7]} 34. Rc1 {[%clk 0:00:50.5]}
34... Rf3 {[%clk 0:00:15.1]} 35. c6 {[%clk 0:00:40.9]} 35... bxc6 {[%clk
0:00:09.5]} 36. Rxc6 {[%clk 0:00:41.8]} 36... e3 {[%clk 0:00:08.3]} 37. fxe3
{[%clk 0:00:42.1]} 37... Rxe3 {[%clk 0:00:09.2]} 38. Rxa6 {[%clk 0:00:42.6]}
38... Ra3 {[%clk 0:00:09.5]} 39. Kg2 {[%clk 0:00:36.1]} 39... Ra2+ {[%clk
0:00:09.6]} 40. Kh3 {[%clk 0:00:36.1]} 40... Kh7 {[%clk 0:00:09.8]} 41. g4
{[%clk 0:00:35.8]} 41... Ra3+ {[%clk 0:00:08.2]} 42. Kg2 {[%clk 0:00:36.1]}
42... Ra2+ {[%clk 0:00:08.8]} 43. Kg3 {[%clk 0:00:36.6]} 43... g5 {[%clk
0:00:08]} 44. Ra8 {[%clk 0:00:34.7]} 44... Ra3+ {[%clk 0:00:07.1]} 45. Kg2
{[%clk 0:00:34.3]} 45... Kg7 {[%clk 0:00:07.3]} 46. a6 {[%clk 0:00:31.7]} 46...
Kh7 {[%clk 0:00:06.9]} 47. Kf2 {[%clk 0:00:29.2]} 47... Ra2+ {[%clk 0:00:05.3]}
48. Ke3 {[%clk 0:00:29.4]} 48... Rxh2 {[%clk 0:00:04.6]} 49. Rb8 {[%clk
0:00:18.6]} 49... Ra2 {[%clk 0:00:03.8]} 50. Rb6 {[%clk 0:00:19.1]} 50... Kg7
{[%clk 0:00:02.9]} 51. Ke4 {[%clk 0:00:19]} 51... Ra4+ {[%clk 0:00:02.9]} 52.
Kf5 {[%clk 0:00:19.4]} 52... Ra5+ {[%clk 0:00:03.4]} 53. Ke6 {[%clk 0:00:19.7]}
53... h5 {[%clk 0:00:03]} 54. gxh5 {[%clk 0:00:20.6]} 54... Kh6 {[%clk
0:00:03.5]} 55. Kd7+ {[%clk 0:00:13.7]} 55... Kxh5 {[%clk 0:00:03.8]} 56. Kc7
{[%clk 0:00:14.6]} 56... g4 {[%clk 0:00:03.6]} 57. Kb7 {[%clk 0:00:14]} 57...
Rxa6 {[%clk 0:00:03.2]} 58. Kxa6 {[%clk 0:00:12.9]} 58... Kh4 {[%clk 0:00:03.9]}
59. Kb5 {[%clk 0:00:12.5]} 59... g3 {[%clk 0:00:04.3]} 60. Kc4 {[%clk
0:00:13.2]} 60... g2 {[%clk 0:00:03.8]} 61. Rb1 {[%clk 0:00:13.8]} 61... Kg3
{[%clk 0:00:03.9]} 62. Kd3 {[%clk 0:00:14.2]} 62... Kf2 {[%clk 0:00:04.2]} 63.
Rb2+ {[%clk 0:00:14.5]} 63... Kf1 {[%clk 0:00:04.5]} 64. Rxg2 {[%clk 0:00:15.4]}
64... Kxg2 {[%clk 0:00:04.8]} 1/2-1/2

[Event "Early-Titled-Tuesday-Blitz-March-19-2024"]
[Site "Chess.com"]
[Date "2024.03.19"]
[Round "5"]
[White "mishanick"]
[Black "OparinGrigoriy"]
[Result "1/2-1/2"]
[WhiteElo "3126"]
[BlackElo "2989"]
[TimeControl "180+1"]
[EndTime "8:58:22 PDT"]
[Termination "Game drawn - insufficient material"]

1. d4 {[%clk 0:02:56.9]} 1... d5 {[%clk 0:03:00.6]} 2. c4 {[%clk 0:02:55.5]}
2... e6 {[%clk 0:03:01.3]} 3. Nc3 {[%clk 0:02:55.4]} 3... Be7 {[%clk 0:03:02.1]}
4. Nf3 {[%clk 0:02:54.6]} 4... Nf6 {[%clk 0:03:02]} 5. Bg5 {[%clk 0:02:55]} 5...
h6 {[%clk 0:03:02]} 6. Bxf6 {[%clk 0:02:55]} 6... Bxf6 {[%clk 0:03:02.9]} 7.
cxd5 {[%clk 0:02:55.7]} 7... exd5 {[%clk 0:03:03]} 8. Qb3 {[%clk 0:02:56.3]}
8... c6 {[%clk 0:03:02.9]} 9. e3 {[%clk 0:02:57.1]} 9... O-O {[%clk 0:03:01.7]}
10. Bd3 {[%clk 0:02:57.7]} 10... Re8 {[%clk 0:03:00.7]} 11. O-O {[%clk
0:02:56.2]} 11... Nd7 {[%clk 0:03:00]} 12. h3 {[%clk 0:02:55.4]} 12... Nf8
{[%clk 0:02:54.7]} 13. Rfe1 {[%clk 0:02:53.6]} 13... Qb6 {[%clk 0:02:42.6]} 14.
Qc2 {[%clk 0:02:51.9]} 14... Bd7 {[%clk 0:02:36.1]} 15. Na4 {[%clk 0:02:50.7]}
15... Qd8 {[%clk 0:02:36.2]} 16. Nc5 {[%clk 0:02:51.1]} 16... Rb8 {[%clk
0:02:32.3]} 17. b4 {[%clk 0:02:48.8]} 17... a6 {[%clk 0:02:30.9]} 18. a4 {[%clk
0:02:45.7]} 18... Ne6 {[%clk 0:02:29.9]} 19. b5 {[%clk 0:02:30.2]} 19... axb5
{[%clk 0:02:29.5]} 20. axb5 {[%clk 0:02:30.2]} 20... Nxc5 {[%clk 0:02:24.7]} 21.
Qxc5 {[%clk 0:02:29.1]} 21... b6 {[%clk 0:02:24.7]} 22. Qd6 {[%clk 0:02:06.1]}
22... c5 {[%clk 0:02:13]} 23. Qxd5 {[%clk 0:02:01.1]} 23... Be6 {[%clk 0:02:13]}
24. Qxd8 {[%clk 0:01:30.9]} 24... Rbxd8 {[%clk 0:02:13.9]} 25. Ra6 {[%clk
0:01:29.5]} 25... cxd4 {[%clk 0:02:09.7]} 26. exd4 {[%clk 0:01:28.3]} 26... Bxd4
{[%clk 0:02:09.9]} 27. Nxd4 {[%clk 0:01:20.6]} 27... Rxd4 {[%clk 0:02:10.8]} 28.
Re3 {[%clk 0:01:16.3]} 28... Bd7 {[%clk 0:01:49.9]} 29. Be2 {[%clk 0:00:51.6]}
29... Rd6 {[%clk 0:01:36]} 30. Rxe8+ {[%clk 0:00:46]} 30... Bxe8 {[%clk
0:01:36.9]} 31. Ra8 {[%clk 0:00:46.4]} 31... Kf8 {[%clk 0:01:37.1]} 32. Rb8
{[%clk 0:00:45.4]} 32... Ke7 {[%clk 0:01:37]} 33. Rb7+ {[%clk 0:00:45.7]} 33...
Kf6 {[%clk 0:01:35.4]} 34. Bc4 {[%clk 0:00:43.3]} 34... g5 {[%clk 0:01:31.2]}
35. Kf1 {[%clk 0:00:40.5]} 35... Bd7 {[%clk 0:01:30.1]} 36. Ke2 {[%clk
0:00:39.9]} 36... Ke5 {[%clk 0:01:26.6]} 37. Rb8 {[%clk 0:00:25.7]} 37... f5
{[%clk 0:01:24.9]} 38. Bd3 {[%clk 0:00:23.1]} 38... Kd4 {[%clk 0:01:09.8]} 39.
Rd8 {[%clk 0:00:09.4]} 39... Kc5 {[%clk 0:01:09.9]} 40. Kd2 {[%clk 0:00:07.6]}
40... f4 {[%clk 0:00:52.8]} 41. Kc3 {[%clk 0:00:06.8]} 41... f3 {[%clk
0:00:27.5]} 42. gxf3 {[%clk 0:00:07.7]} 42... Bxh3 {[%clk 0:00:27.8]} 43. Rh8
{[%clk 0:00:07.1]} 43... Bd7 {[%clk 0:00:26.3]} 44. Rd8 {[%clk 0:00:07.3]} 44...
Kd5 {[%clk 0:00:23.4]} 45. Be4+ {[%clk 0:00:06.2]} 45... Ke5 {[%clk 0:00:23.7]}
46. Kb4 {[%clk 0:00:05]} 46... g4 {[%clk 0:00:17.3]} 47. Ba8 {[%clk 0:00:03.7]}
47... gxf3 {[%clk 0:00:11.2]} 48. Bxf3 {[%clk 0:00:04.6]} 48... Rd4+ {[%clk
0:00:07.9]} 49. Kc3 {[%clk 0:00:04.5]} 49... Rf4 {[%clk 0:00:08.2]} 50. Bc6
{[%clk 0:00:03.5]} 50... Be6 {[%clk 0:00:06.4]} 51. f3 {[%clk 0:00:03.2]} 51...
Rf6 {[%clk 0:00:04.4]} 52. Rb8 {[%clk 0:00:03.5]} 52... Bd5 {[%clk 0:00:04.3]}
53. Rxb6 {[%clk 0:00:03.6]} 53... Rxf3+ {[%clk 0:00:04]} 54. Kb4 {[%clk
0:00:04.4]} 54... Bxc6 {[%clk 0:00:03.2]} 55. Rxc6 {[%clk 0:00:04.7]} 55... h5
{[%clk 0:00:03.4]} 56. Rc5+ {[%clk 0:00:04.7]} 56... Kd6 {[%clk 0:00:03.4]} 57.
b6 {[%clk 0:00:04.1]} 57... Rf1 {[%clk 0:00:03.3]} 58. Rxh5 {[%clk 0:00:02.3]}
58... Kc6 {[%clk 0:00:03.7]} 59. Ka5 {[%clk 0:00:02.7]} 59... Ra1+ {[%clk
0:00:03.4]} 60. Kb4 {[%clk 0:00:03.3]} 60... Kxb6 {[%clk 0:00:04.1]} 61. Rh6+
{[%clk 0:00:03.4]} 61... Kc7 {[%clk 0:00:04.7]} 62. Rh3 {[%clk 0:00:04.3]} 62...
Kb6 {[%clk 0:00:04.9]} 63. Rb3 {[%clk 0:00:05.1]} 63... Ra6 {[%clk 0:00:04.2]}
64. Kc4+ {[%clk 0:00:05.5]} 64... Ka7 {[%clk 0:00:04.7]} 65. Kb4 {[%clk
0:00:04.6]} 65... Rb6+ {[%clk 0:00:05.2]} 66. Ka3 {[%clk 0:00:05.4]} 66... Rxb3+
{[%clk 0:00:06.1]} 67. Kxb3 {[%clk 0:00:06.3]} 1/2-1/2

[Event "Early-Titled-Tuesday-Blitz-March-19-2024"]
[Site "Chess.com"]
[Date "2024.03.19"]
[Round "5"]
[White "kpio91"]
[Black "vi_pranav"]
[Result "1-0"]
[WhiteElo "2860"]
[BlackElo "3048"]
[TimeControl "180+1"]
[EndTime "8:58:22 PDT"]
[Termination "kpio91 won on time"]

1. g3 {[%clk 0:03:00.9]} 1... d5 {[%clk 0:02:57.5]} 2. Bg2 {[%clk 0:03:01.8]}
2... Nf6 {[%clk 0:02:56.8]} 3. Nf3 {[%clk 0:03:01.3]} 3... c6 {[%clk 0:02:57.2]}
4. O-O {[%clk 0:03:01.1]} 4... Bg4 {[%clk 0:02:57.3]} 5. h3 {[%clk 0:02:58.5]}
5... Bxf3 {[%clk 0:02:57.4]} 6. exf3 {[%clk 0:02:58.4]} 6... Nbd7 {[%clk
0:02:58.3]} 7. d3 {[%clk 0:02:54.9]} 7... e6 {[%clk 0:02:57.7]} 8. f4 {[%clk
0:02:53.8]} 8... Bd6 {[%clk 0:02:56.8]} 9. Nd2 {[%clk 0:02:54.2]} 9... O-O
{[%clk 0:02:56.8]} 10. Nf3 {[%clk 0:02:54.1]} 10... Rc8 {[%clk 0:02:53]} 11. Re1
{[%clk 0:02:49.8]} 11... Qc7 {[%clk 0:02:37]} 12. c3 {[%clk 0:02:41.4]} 12... c5
{[%clk 0:02:33.1]} 13. Qe2 {[%clk 0:02:23.8]} 13... Rfe8 {[%clk 0:02:20.8]} 14.
Ne5 {[%clk 0:02:23]} 14... Nf8 {[%clk 0:02:17.8]} 15. Bd2 {[%clk 0:02:10.1]}
15... N6d7 {[%clk 0:02:16.5]} 16. h4 {[%clk 0:02:01]} 16... Ng6 {[%clk
0:01:46.2]} 17. Ng4 {[%clk 0:01:45.1]} 17... f5 {[%clk 0:01:33.9]} 18. Ne3
{[%clk 0:01:42.2]} 18... Nf6 {[%clk 0:01:30.1]} 19. c4 {[%clk 0:01:29.5]} 19...
d4 {[%clk 0:01:16.2]} 20. Nc2 {[%clk 0:01:27.6]} 20... e5 {[%clk 0:01:15.7]} 21.
fxe5 {[%clk 0:01:13.1]} 21... Nxe5 {[%clk 0:01:15.5]} 22. Qf1 {[%clk 0:01:08.3]}
22... Rf8 {[%clk 0:01:09]} 23. f4 {[%clk 0:01:06.8]} 23... Neg4 {[%clk
0:01:05.7]} 24. Bf3 {[%clk 0:00:51.1]} 24... h6 {[%clk 0:01:02.3]} 25. Rab1
{[%clk 0:00:47.4]} 25... b6 {[%clk 0:00:52.3]} 26. b4 {[%clk 0:00:46.7]} 26...
cxb4 {[%clk 0:00:51.3]} 27. Nxb4 {[%clk 0:00:46.5]} 27... Bc5 {[%clk 0:00:48]}
28. Na6 {[%clk 0:00:41.1]} 28... Qd6 {[%clk 0:00:39.1]} 29. Nxc5 {[%clk
0:00:40.2]} 29... bxc5 {[%clk 0:00:39.7]} 30. Rb7 {[%clk 0:00:36.5]} 30... Rc7
{[%clk 0:00:38.5]} 31. Rb2 {[%clk 0:00:33.2]} 31... Ne3 {[%clk 0:00:35.4]} 32.
Bxe3 {[%clk 0:00:28]} 32... dxe3 {[%clk 0:00:36.3]} 33. Rxe3 {[%clk 0:00:28.2]}
33... Qd4 {[%clk 0:00:35.7]} 34. Re2 {[%clk 0:00:28.6]} 34... Rcc8 {[%clk
0:00:23.3]} 35. Qf2 {[%clk 0:00:28.6]} 35... Rb8 {[%clk 0:00:23.2]} 36. Rd2
{[%clk 0:00:17.9]} 36... Rb1+ {[%clk 0:00:22.5]} 37. Kg2 {[%clk 0:00:18.2]}
37... Qa1 {[%clk 0:00:21.9]} 38. Re7 {[%clk 0:00:17.1]} 38... Rfb8 {[%clk
0:00:17.3]} 39. Rde2 {[%clk 0:00:12.7]} 39... Rd1 {[%clk 0:00:11.9]} 40. Qxc5
{[%clk 0:00:07.9]} 40... Rxd3 {[%clk 0:00:08.5]} 41. Qxf5 {[%clk 0:00:05.5]}
41... Rxf3 {[%clk 0:00:05]} 42. Kxf3 {[%clk 0:00:05.4]} 42... Qf1+ {[%clk
0:00:05.6]} 43. Ke3 {[%clk 0:00:04.3]} 43... Qc1+ {[%clk 0:00:03.8]} 44. Kf2
{[%clk 0:00:04.1]} 44... Qh1 {[%clk 0:00:03.4]} 45. Qe6+ {[%clk 0:00:03.7]}
45... Kh8 {[%clk 0:00:03.9]} 46. Qf7 {[%clk 0:00:02.2]} 46... Qh2+ {[%clk
0:00:03.3]} 47. Kf3 {[%clk 0:00:01.6]} 47... Qh1+ {[%clk 0:00:03.9]} 48. Ke3
{[%clk 0:00:01.6]} 48... Ng4+ {[%clk 0:00:03.9]} 49. Kd3 {[%clk 0:00:02.1]}
49... Rd8+ {[%clk 0:00:04.2]} 50. Kc3 {[%clk 0:00:02.6]} 50... Qc1+ {[%clk
0:00:04]} 51. Kb4 {[%clk 0:00:03]} 51... Rb8+ {[%clk 0:00:04.2]} 52. Ka4 {[%clk
0:00:02]} 52... Qd1+ {[%clk 0:00:04.3]} 53. Ka5 {[%clk 0:00:02.6]} 53... Qd8+
{[%clk 0:00:02.9]} 54. Rc7 {[%clk 0:00:03]} 1-0

[Event "Early-Titled-Tuesday-Blitz-March-19-2024"]
[Site "Chess.com"]
[Date "2024.03.19"]
[Round "5"]
[White "AsterPhoenix"]
[Black "malakismayil"]
[Result "0-1"]
[WhiteElo "2650"]
[BlackElo "2522"]
[TimeControl "180+1"]
[EndTime "8:58:22 PDT"]
[Termination "malakismayil won by resignation"]

1. e4 {[%clk 0:03:00.9]} 1... e5 {[%clk 0:02:59.8]} 2. Nf3 {[%clk 0:03:00.9]}
2... Nc6 {[%clk 0:03:00.3]} 3. Bc4 {[%clk 0:03:01.5]} 3... Bc5 {[%clk
0:02:59.2]} 4. d3 {[%clk 0:03:00.8]} 4... Nf6 {[%clk 0:02:59.6]} 5. Nc3 {[%clk
0:03:00.5]} 5... O-O {[%clk 0:02:59.1]} 6. Bg5 {[%clk 0:02:54.9]} 6... h6 {[%clk
0:02:59]} 7. Bxf6 {[%clk 0:02:46.1]} 7... Qxf6 {[%clk 0:02:59.9]} 8. Nd5 {[%clk
0:02:46.5]} 8... Qd8 {[%clk 0:02:58.6]} 9. c3 {[%clk 0:02:47.1]} 9... d6 {[%clk
0:02:56.7]} 10. d4 {[%clk 0:02:42.4]} 10... exd4 {[%clk 0:02:56.2]} 11. cxd4
{[%clk 0:02:43.3]} 11... Bb6 {[%clk 0:02:56.1]} 12. O-O {[%clk 0:02:36.4]} 12...
Bg4 {[%clk 0:02:53.7]} 13. Nxb6 {[%clk 0:02:35.5]} 13... axb6 {[%clk 0:02:54.6]}
14. d5 {[%clk 0:02:30.6]} 14... Ne5 {[%clk 0:02:53.3]} 15. Be2 {[%clk
0:02:30.2]} 15... Bxf3 {[%clk 0:02:53.2]} 16. Bxf3 {[%clk 0:02:31.1]} 16... f5
{[%clk 0:02:47.3]} 17. exf5 {[%clk 0:02:28.7]} 17... Rxf5 {[%clk 0:02:48.2]} 18.
Be4 {[%clk 0:02:29]} 18... Rf4 {[%clk 0:02:46.3]} 19. f3 {[%clk 0:02:29.3]}
19... Qg5 {[%clk 0:02:32.9]} 20. Rc1 {[%clk 0:02:16.1]} 20... Rf7 {[%clk
0:02:08.7]} 21. a3 {[%clk 0:02:02.4]} 21... Raf8 {[%clk 0:02:07]} 22. Kh1 {[%clk
0:02:02.5]} 22... Qh4 {[%clk 0:01:53.8]} 23. Qe1 {[%clk 0:01:53.1]} 23... Qg5
{[%clk 0:01:43.7]} 24. Rc3 {[%clk 0:01:47.2]} 24... Ng4 {[%clk 0:01:37.9]} 25.
Qg3 {[%clk 0:01:31.4]} 25... Nf6 {[%clk 0:01:19.6]} 26. Qxg5 {[%clk 0:01:28.2]}
26... hxg5 {[%clk 0:01:20.5]} 27. Bg6 {[%clk 0:01:02]} 27... Re7 {[%clk
0:01:17]} 28. Rd3 {[%clk 0:00:54.6]} 28... Re5 {[%clk 0:01:06.1]} 29. Kg1 {[%clk
0:00:39]} 29... Nxd5 {[%clk 0:00:58]} 30. Be4 {[%clk 0:00:39.3]} 30... Nf4
{[%clk 0:00:55.4]} 31. Rd2 {[%clk 0:00:38.2]} 31... d5 {[%clk 0:00:54]} 32. Bb1
{[%clk 0:00:37.5]} 32... Rfe8 {[%clk 0:00:45.6]} 33. g3 {[%clk 0:00:38]} 33...
Re2 {[%clk 0:00:26.6]} 34. Rxe2 {[%clk 0:00:29.9]} 34... Nxe2+ {[%clk
0:00:27.5]} 35. Kf2 {[%clk 0:00:12.6]} 35... Nd4 {[%clk 0:00:28.4]} 36. Bd3
{[%clk 0:00:11.2]} 36... c5 {[%clk 0:00:28.3]} 37. Rd1 {[%clk 0:00:11]} 37...
Kf8 {[%clk 0:00:21.8]} 38. Rd2 {[%clk 0:00:09.8]} 38... Ke7 {[%clk 0:00:20.7]}
39. Bf1 {[%clk 0:00:05.6]} 39... Kf6 {[%clk 0:00:20.1]} 40. Bg2 {[%clk
0:00:06.1]} 40... Ke6 {[%clk 0:00:15.7]} 41. Bf1 {[%clk 0:00:04.7]} 41... Kd6
{[%clk 0:00:16]} 42. Bg2 {[%clk 0:00:05.2]} 42... Rh8 {[%clk 0:00:15.8]} 43. Kg1
{[%clk 0:00:04.5]} 43... Rf8 {[%clk 0:00:15.9]} 44. Kf2 {[%clk 0:00:04.1]} 44...
g4 {[%clk 0:00:16.4]} 45. f4 {[%clk 0:00:04.2]} 45... g5 {[%clk 0:00:17]} 46.
Ke3 {[%clk 0:00:03.3]} 46... gxf4+ {[%clk 0:00:17.5]} 47. gxf4 {[%clk
0:00:04.2]} 47... Nf5+ {[%clk 0:00:18.2]} 48. Kf2 {[%clk 0:00:04.5]} 48... d4
{[%clk 0:00:18.3]} 49. Re2 {[%clk 0:00:05]} 49... Ne3 {[%clk 0:00:17.8]} 50. Kg3
{[%clk 0:00:05.5]} 50... c4 {[%clk 0:00:12.9]} 51. Bxb7 {[%clk 0:00:04.1]} 51...
Rg8 {[%clk 0:00:10.2]} 52. Be4 {[%clk 0:00:03.8]} 52... Kc5 {[%clk 0:00:09.9]}
53. f5 {[%clk 0:00:04.1]} 53... Re8 {[%clk 0:00:09.1]} 54. Kf4 {[%clk
0:00:04.5]} 54... Nd5+ {[%clk 0:00:06]} 55. Kxg4 {[%clk 0:00:04.9]} 55... d3
{[%clk 0:00:06.5]} 56. Bxd3 {[%clk 0:00:04.5]} 56... Rg8+ {[%clk 0:00:05.6]} 57.
Kf3 {[%clk 0:00:03.9]} 57... cxd3 {[%clk 0:00:06.5]} 58. Rd2 {[%clk 0:00:04.5]}
58... Rh8 {[%clk 0:00:05.1]} 59. Rxd3 {[%clk 0:00:04.1]} 59... Rxh2 {[%clk
0:00:04.9]} 60. Rb3 {[%clk 0:00:03.5]} 60... Rh3+ {[%clk 0:00:04.9]} 61. Kg4
{[%clk 0:00:03.6]} 61... Rxb3 {[%clk 0:00:05.8]} 62. f6 {[%clk 0:00:04.3]} 62...
Nxf6+ {[%clk 0:00:05.9]} 0-1

[Event "Early-Titled-Tuesday-Blitz-March-19-2024"]
[Site "Chess.com"]
[Date "2024.03.19"]
[Round "5"]
[White "Rurep26"]
[Black "stollenmonster"]
[Result "1/2-1/2"]
[WhiteElo "2729"]
[BlackElo "2913"]
[TimeControl "180+1"]
[EndTime "8:58:24 PDT"]
[Termination "Game drawn - insufficient material"]

1. d4 {[%clk 0:03:00.9]} 1... Nf6 {[%clk 0:02:58.6]} 2. Bf4 {[%clk 0:02:57.7]}
2... e6 {[%clk 0:02:58.6]} 3. e3 {[%clk 0:02:57.8]} 3... d5 {[%clk 0:02:59.1]}
4. Nd2 {[%clk 0:02:58.2]} 4... Bd6 {[%clk 0:02:56.8]} 5. Bg3 {[%clk 0:02:58.4]}
5... c5 {[%clk 0:02:56]} 6. c3 {[%clk 0:02:58.1]} 6... O-O {[%clk 0:02:55]} 7.
Bd3 {[%clk 0:02:57.3]} 7... Nc6 {[%clk 0:02:55.2]} 8. Ngf3 {[%clk 0:02:57.3]}
8... Qe7 {[%clk 0:02:54.6]} 9. Ne5 {[%clk 0:02:57]} 9... Nd7 {[%clk 0:02:51.7]}
10. Nxd7 {[%clk 0:02:57]} 10... Bxd7 {[%clk 0:02:51]} 11. Bxd6 {[%clk 0:02:56]}
11... Qxd6 {[%clk 0:02:49.7]} 12. dxc5 {[%clk 0:02:56.9]} 12... Qxc5 {[%clk
0:02:42.1]} 13. Bxh7+ {[%clk 0:02:56.5]} 13... Kxh7 {[%clk 0:02:43]} 14. Qh5+
{[%clk 0:02:56.5]} 14... Kg8 {[%clk 0:02:42.8]} 15. Ne4 {[%clk 0:02:56.8]} 15...
Qb5 {[%clk 0:02:33.7]} 16. Ng5 {[%clk 0:02:56.4]} 16... Rfd8 {[%clk 0:02:33.3]}
17. Qxf7+ {[%clk 0:02:54.3]} 17... Kh8 {[%clk 0:02:32.5]} 18. Rd1 {[%clk
0:02:30.5]} 18... d4 {[%clk 0:01:46.9]} 19. Qh5+ {[%clk 0:02:17.3]} 19... Kg8
{[%clk 0:01:46.9]} 20. Qf7+ {[%clk 0:01:48.3]} 20... Kh8 {[%clk 0:01:47]} 21.
Qh5+ {[%clk 0:01:40.4]} 21... Kg8 {[%clk 0:01:47]} 22. Qh7+ {[%clk 0:01:09]}
22... Kf8 {[%clk 0:01:45.8]} 23. Qh8+ {[%clk 0:01:09.9]} 23... Ke7 {[%clk
0:01:45.3]} 24. Qxg7+ {[%clk 0:01:10.8]} 24... Kd6 {[%clk 0:01:45]} 25. Nf7+
{[%clk 0:01:10.3]} 25... Kc7 {[%clk 0:01:45.4]} 26. Nxd8 {[%clk 0:01:10.8]}
26... Rxd8 {[%clk 0:01:45.2]} 27. exd4 {[%clk 0:01:06]} 27... Qxb2 {[%clk
0:01:40.1]} 28. Qg3+ {[%clk 0:01:04.4]} 28... Kc8 {[%clk 0:01:39.4]} 29. O-O
{[%clk 0:01:03.8]} 29... Qxa2 {[%clk 0:01:39.4]} 30. Rfe1 {[%clk 0:00:56.4]}
30... Qd5 {[%clk 0:01:30.8]} 31. Rc1 {[%clk 0:00:36.3]} 31... a5 {[%clk
0:01:24.7]} 32. Red1 {[%clk 0:00:34.2]} 32... Qc4 {[%clk 0:01:23.6]} 33. h4
{[%clk 0:00:32.2]} 33... Ne7 {[%clk 0:01:16.4]} 34. Qg5 {[%clk 0:00:27.8]} 34...
Nf5 {[%clk 0:01:11.1]} 35. h5 {[%clk 0:00:21]} 35... Bc6 {[%clk 0:00:52.8]} 36.
Re1 {[%clk 0:00:20.8]} 36... Qd5 {[%clk 0:00:41.2]} 37. f3 {[%clk 0:00:20.2]}
37... Qd7 {[%clk 0:00:29.8]} 38. Qf6 {[%clk 0:00:19.7]} 38... Rg8 {[%clk
0:00:20.5]} 39. Qxe6 {[%clk 0:00:18.7]} 39... Qxe6 {[%clk 0:00:19.8]} 40. Rxe6
{[%clk 0:00:19.6]} 40... Nh4 {[%clk 0:00:20.3]} 41. h6 {[%clk 0:00:16.2]} 41...
Rxg2+ {[%clk 0:00:18.7]} 42. Kf1 {[%clk 0:00:16.8]} 42... Rh2 {[%clk 0:00:18.7]}
43. Rce1 {[%clk 0:00:07.1]} 43... Nxf3 {[%clk 0:00:17.1]} 44. R1e3 {[%clk
0:00:06.7]} 44... a4 {[%clk 0:00:14.2]} 45. Rxc6+ {[%clk 0:00:05.1]} 45... bxc6
{[%clk 0:00:15.1]} 46. Rxf3 {[%clk 0:00:06]} 46... Rxh6 {[%clk 0:00:15.2]} 47.
Rf2 {[%clk 0:00:06]} 47... Rh3 {[%clk 0:00:13]} 48. Ra2 {[%clk 0:00:06.4]} 48...
Rxc3 {[%clk 0:00:12.1]} 49. Rxa4 {[%clk 0:00:07.3]} 49... Kd7 {[%clk 0:00:12.1]}
50. Ke2 {[%clk 0:00:07.8]} 50... c5 {[%clk 0:00:12.1]} 51. Kd2 {[%clk
0:00:07.3]} 51... Rh3 {[%clk 0:00:09.6]} 52. dxc5 {[%clk 0:00:07.3]} 52... Kc6
{[%clk 0:00:09.9]} 53. Rc4 {[%clk 0:00:07.8]} 53... Rh5 {[%clk 0:00:09.7]} 54.
Kd3 {[%clk 0:00:07.9]} 54... Rxc5 {[%clk 0:00:10.6]} 55. Kd4 {[%clk 0:00:07.9]}
55... Rxc4+ {[%clk 0:00:10.9]} 56. Kxc4 {[%clk 0:00:08.8]} 1/2-1/2